{"text_format":"1","workbook":"xlsx","n_sheets":5,"sheets":["Instructions","Page1 - Expense Report","Page 2 - Travel Expenses","per diem tables","Sheet1"],"not_rendered":{"charts":0,"images":1,"macros":1,"external_links":3,"defined_names":26,"comments":0,"pivot_tables":0},"unopened":[],"bounds":{"document_bytes":16777216,"sheet_cells":100000,"rows_first":2000,"rows_last":500,"rows_between":2000,"halvings":0,"cell_chars":16384,"cell_head_chars":4096},"cells_cut":0,"cells_raw":0,"read":"whole","date_system":"1900"}

{"sheet":"Instructions","index":0,"n_rows":77,"n_cols":6,"rows_kept":77,"cut":false,"hidden":false,"merged":[[24,0,24,1],[23,2,23,12],[5,0,5,1],[11,0,11,1],[7,2,7,12],[15,2,15,12],[15,0,15,1],[17,0,17,1],[17,2,17,12],[21,2,21,12],[24,2,24,12],[21,0,21,1],[23,0,23,1],[0,0,0,3],[0,5,0,12],[9,0,9,1],[1,0,1,12],[19,2,19,12],[13,2,13,12],[19,0,19,1],[5,2,5,12],[7,0,7,1],[13,0,13,1],[9,2,9,12],[11,2,11,12],[2,5,2,12],[3,0,3,11],[79,0,79,12],[52,0,52,1],[76,2,76,11],[57,0,57,1],[55,0,55,12],[65,2,65,11],[67,2,67,11],[69,2,69,11],[63,2,63,11],[57,2,57,11],[61,2,61,11],[52,2,53,12],[59,2,59,11],[72,2,72,11],[74,2,74,11],[46,2,46,12],[50,2,50,12],[39,2,40,12],[71,2,71,11],[44,0,44,12],[46,0,46,1],[48,2,48,12],[48,0,48,1],[50,0,50,1],[41,2,41,12],[39,0,39,1],[37,0,37,12],[32,2,32,12],[35,2,35,12],[35,0,35,1],[33,2,33,12],[32,0,32,1],[33,0,33,1]]}
[null,null,null,null,null,"Travel Expense Statement - Instructions\n"]
["This form should be completed by any agency that is not using the Concur Travel and Expense Management System.  Use the Per Diem Calculator Tool (included with this form) to determine the total meal allowance due to the traveler (if applicable).\n"]
[]
["Section 1: Expense Submitter & Preparer Information"]
[]
["Agency & Traveler Name",null,"Enter the expense submitter's agency name and in the appropriate field enter the Traveler's name"]
[]
["Employee ID#",null,"Enter expense submitter's employee ID #"]
[]
["Home Address",null,"Enter the expense submitter's street address"]
[]
["City, State, Zip",null,"Enter the expense submitter's home city, state, and zip"]
[]
["Office Phone:",null,"Enter expense submitter's phone number"]
[]
["Email Address:",null,"Enter expense submitter's email address"]
[]
["Type of Travel:",null,"Select dropdown box for: In State, Out of State, or International Travel"]
[]
["Travel To Date:",null,"Enter first date of the trip"]
[]
["Travel From Date:",null,"Enter last date of trip"]
[]
["Departure & Return Time:",null,"Enter the time you left on the first day of your trip and the time you returned on the last day of your trip"]
["Section 2: Record of Expenses",null,"This section summarizes the Travel Expenses from page 2, the Mileage Expenses from page 3, and the M&IE Per diem amount calculated with the Per diem Calculator Tool on page 4."]
[]
["Date",null,"Write out the date in the MM/DD/YY format"]
[]
["Per Diem",null,"For the First and Last Day, check the box in the per diem field (Only 75% of Per Diem Eligible for Reimbursement on the First and Last Day "]
[null,null,"of an authorized trip.  Also, note that when a meal is provided the eligible reimbursable per diem is reduced by the amount allocated for that"]
[null,null,"particular meal at the 100% rate -- this is a State Policy)."]
[]
["Total Expenses",null,"The sum of the expenses in the Amount column will total here"]
["Travel Advance ",null,"If the expense submitter obtained a travel advance prior to the trip, enter the amount of the advance"]
[]
["Due TO/FROM the Expense Submitter",null,"If the expenses were greater than the total of the advances, the net amount owed TO the expense submitter will total here. If the advances were greater than the expense amount, the net amount due FROM the expense submitter will total here. If the expense submitter owes the State money, please attach a personal check to the expense report"]
[]
["Section 3: Certification and Attestation"]
[]
["Traveler Signature",null,"Enter the name of the traveler"]
[]
["Approver Signatures",null,"Note:  The individual/s below who approve the Travel and Expense Statement are certifying the following: \n           \n           *      Appropriateness of the expenditure and reasonableness of the amount            \n           *      Availability of funds            \n           *      Compliance with Statewide Travel Regulations          \n           *      Completeness of documentation and accuracy           "]
[]
[]
["Page 2  - Itemized Travel Expenses"]
[]
["Purpose of Trip/Event",null,"Clearly state the business purpose of the trip or event; include the conference name if applicable"]
[]
["Record of Travel Expenses",null,"Itemize all expenses by date and type. An original receipt is required for any item $25 or greater. Original receipts are also required for all lodging and airline expenses, regardless of amount."]
[]
["Common Carrier, Etc…",null,"Enter amount of any commercial transportation used during a trip (Receipts are required) Other expenses charged to this account include parking, taxes, and tolls"]
[]
["Miscellaneous Expenses",null,"Use this space to include expenses that do not apply to any of the above categories. List the date and provide a description of the expense.  Attach an additional sheet if necessary. "]
[]
[]
["Page 3 - Personal Vehicle Mileage"]
[]
["Traveler Name",null,"Enter the name of the employee: last name, first name, middle initial"]
[]
["Date",null,"Enter date of the traveler's departure"]
[]
["Origin",null,"Enter location where the trip began"]
[]
["Destination",null,"Enter final destination of business trip"]
[]
["Business Miles",null,"Enter total business miles for the travel"]
[]
["Commute Miles",null,"Enter total commute miles for the travel (Miles from home to work location)"]
[]
["Personal Miles",null,"Enter any personal miles that occurred during the travel"]
[]
["State Use Miles",null,"State use miles will automatically calculate (deducting any commute miles and personal miles)"]
["Mileage Rate",null,"Verify that correct mileage rate populated.   Total State use miles will automatically populate in Page 1 of the expense report."]
[]
["Motor Pool",null,"Mark the box if motor pool vehicle was used"]
[]
["Shared Transportation",null,"Enter names of individuals that rode with the traveler"]

{"sheet":"Page1 - Expense Report","index":1,"n_rows":47,"n_cols":23,"rows_kept":47,"cut":false,"hidden":false,"merged":[[0,7,0,12],[1,0,1,12],[12,0,12,12],[2,9,2,10],[4,3,4,7],[5,3,5,7],[9,3,9,7],[7,3,7,7],[6,3,6,7],[8,3,8,7],[3,11,3,12],[8,11,8,12],[7,11,7,12],[4,11,4,12],[5,11,5,12],[9,11,9,12],[34,2,34,4],[6,11,6,12],[0,0,0,6],[19,4,19,5],[16,4,16,5],[17,4,17,5],[17,0,17,3],[18,0,18,3],[15,0,15,3],[17,6,17,7],[3,3,3,7],[18,4,18,5],[16,0,16,3],[15,6,15,7],[16,6,16,7],[19,0,19,3],[45,0,45,11],[35,0,35,11],[40,0,40,11],[42,0,42,11],[44,0,44,11],[43,0,43,11],[38,0,38,12],[37,0,37,12],[41,0,41,11],[39,0,39,11],[32,0,32,11],[33,0,33,11],[26,4,26,5],[31,0,31,11],[30,0,30,6],[26,0,26,3],[26,6,26,7],[23,0,23,3],[24,0,24,3],[25,0,25,3],[14,8,14,12],[14,0,14,7],[22,0,22,3],[22,4,22,5],[15,4,15,5],[20,0,20,3],[21,0,21,3],[20,4,20,5],[21,4,21,5],[19,6,19,7],[25,6,25,7],[23,4,23,5],[20,6,20,7],[21,6,21,7],[13,4,13,12],[25,4,25,5],[23,6,23,7],[24,6,24,7],[24,4,24,5],[18,6,18,7],[22,6,22,7]]}
[null,null,null,null,null,null,null,"DOMESTIC"]
["Section 1: Expense Submitter and Personal Information"]
[]
["Agency:",null,null,"Savannah State University",null,null,null,null,null,"Type of Travel",null,null,null,null,null,null,null,null,null,null,"In State"]
["Traveler's Name:",null,null,null,null,null,null,null,null,"From Date: MM/DD/YY",null,null,null,null,null,null,null,null,null,null,"Out of State"]
["Employee ID #:",null,null,null,null,null,null,null,null,"To Date: MM/DD/YY",null,null,null,null,null,null,null,null,null,null,"International"]
["Home Address:",null,null,null,null,null,null,null,null,"Departure Time:"]
["City, State, Zip:",null,null,null,null,null,null,null,null,"Return Time:"]
["Office Phone:",null,null,null,null,null,null,null,null,"Travel Destination:",null,"Please Select"]
["Email Address:",null,null,null,null,null,null,null,null,"If Other, Specify"]
[]
[]
["Section 2: Record of Expenses"]
["Daily Per Diem:",{"$f":"VLOOKUP(L9,Table1[#All],6,FALSE)","v":0},null,null,"In-State: $28.00, High Cost Areas $36.00 (Cobb, DeKalb, Fulton, Glynn, and Richmond Counties);                                                                   For Out-of-State Per Diems, refer to www.gsa.gov, and deduct Incidentals ($5.00/Day)"]
[" þ First & Last Day, Please Check Box in Per Diem Column",null,null,null,null,null,null,null,"þ For Provided Meals, Please Check Box"]
["Date: (Ex: 10/01/2012)",null,null,null,"Per Diem ",null,"Location",null,"Breakfast","Lunch","Dinner","Lodging","Amount",null,"Per Diem","Is Blank A17","B","L",null,null,null,null,"D"]
[{"$f":"IF(ISBLANK(L5),\"\",SUM(L5))","v":""},null,null,null,{"$f":"IF(COUNTBLANK(A17),\"\",IF(O17=TRUE,$B$14*0.75,$B$14))","v":""},null,{"$f":"IF(COUNTBLANK(A17)=1,\"\",IF(ISBLANK($B$14),\"\",IF($B$14=0,\"\",$L$9)))","v":""},null,{"$f":"IF($E$17=\"\",\"\",IF(Q17=TRUE,SUM(VLOOKUP($B$14,'per diem tables'!$A$2:$D$32,2,TRUE)*-1),\"\"))","v":""},{"$f":"IF($E$17=\"\",\"\",IF(R17=TRUE,SUM(VLOOKUP($B$14,'per diem tables'!$A$2:$D$32,3,TRUE)*-1),\"\"))","v":""},{"$f":"IF($E$17=\"\",\"\",IF(W17=TRUE,SUM(VLOOKUP($B$14,'per diem tables'!$A$2:$D$32,4,TRUE)*-1),\"\"))","v":""},null,{"$f":"IF(COUNTBLANK(E17),\"\",+MAX(0,E17+SUM(I17:K17))+L17)","v":""},null,false,{"$f":"ISBLANK(A17)","v":false},false,false,null,null,null,null,false]
[{"$f":"IF(A17<$L$6,A17+1,\"\")","v":""},null,null,null,{"$f":"IF(COUNTBLANK(A18),\"\",IF(O18=TRUE,$B$14*0.75,$B$14))","v":""},null,{"$f":"IF(COUNTBLANK(A18)=1,\"\",IF(ISBLANK($B$14),\"\",IF($B$14=0,\"\",$L$9)))","v":""},null,{"$f":"IF($E$17=\"\",\"\",IF(Q18=TRUE,SUM(VLOOKUP($B$14,'per diem tables'!$A$2:$D$32,2,TRUE)*-1),\"\"))","v":""},{"$f":"IF($E$17=\"\",\"\",IF(R18=TRUE,SUM(VLOOKUP($B$14,'per diem tables'!$A$2:$D$32,3,TRUE)*-1),\"\"))","v":""},{"$f":"IF($E$17=\"\",\"\",IF(W18=TRUE,SUM(VLOOKUP($B$14,'per diem tables'!$A$2:$D$32,4,TRUE)*-1),\"\"))","v":""},null,{"$f":"IF(COUNTBLANK(E18),\"\",+MAX(0,E18+SUM(I18:K18))+L18)","v":""},null,false,{"$f":"ISBLANK(A18)","v":false},false,false,null,null,null,null,false]
[{"$f":"IF(A18<$L$6,A18+1,\"\")","v":""},null,null,null,"",null,"",null,{"$f":"IF($E$17=\"\",\"\",IF(Q19=TRUE,SUM(VLOOKUP($B$14,'per diem tables'!$A$2:$D$32,2,TRUE)*-1),\"\"))","v":""},{"$f":"IF($E$17=\"\",\"\",IF(R19=TRUE,SUM(VLOOKUP($B$14,'per diem tables'!$A$2:$D$32,3,TRUE)*-1),\"\"))","v":""},{"$f":"IF($E$17=\"\",\"\",IF(W19=TRUE,SUM(VLOOKUP($B$14,'per diem tables'!$A$2:$D$32,4,TRUE)*-1),\"\"))","v":""},null,"",null,false,false,false,false,null,null,null,null,false]
["",null,null,null,"",null,"",null,{"$f":"IF($E$17=\"\",\"\",IF(Q20=TRUE,SUM(VLOOKUP($B$14,'per diem tables'!$A$2:$D$32,2,TRUE)*-1),\"\"))","v":""},{"$f":"IF($E$17=\"\",\"\",IF(R20=TRUE,SUM(VLOOKUP($B$14,'per diem tables'!$A$2:$D$32,3,TRUE)*-1),\"\"))","v":""},{"$f":"IF($E$17=\"\",\"\",IF(W20=TRUE,SUM(VLOOKUP($B$14,'per diem tables'!$A$2:$D$32,4,TRUE)*-1),\"\"))","v":""},null,"",null,false,false,false,false,null,null,null,null,false]
["",null,null,null,"",null,"",null,{"$f":"IF($E$17=\"\",\"\",IF(Q21=TRUE,SUM(VLOOKUP($B$14,'per diem tables'!$A$2:$D$32,2,TRUE)*-1),\"\"))","v":""},{"$f":"IF($E$17=\"\",\"\",IF(R21=TRUE,SUM(VLOOKUP($B$14,'per diem tables'!$A$2:$D$32,3,TRUE)*-1),\"\"))","v":""},{"$f":"IF($E$17=\"\",\"\",IF(W21=TRUE,SUM(VLOOKUP($B$14,'per diem tables'!$A$2:$D$32,4,TRUE)*-1),\"\"))","v":""},null,"",null,false,false,false,false,null,null,null,null,false]
["",null,null,null,"",null,"",null,{"$f":"IF($E$17=\"\",\"\",IF(Q22=TRUE,SUM(VLOOKUP($B$14,'per diem tables'!$A$2:$D$32,2,TRUE)*-1),\"\"))","v":""},{"$f":"IF($E$17=\"\",\"\",IF(R22=TRUE,SUM(VLOOKUP($B$14,'per diem tables'!$A$2:$D$32,3,TRUE)*-1),\"\"))","v":""},{"$f":"IF($E$17=\"\",\"\",IF(W22=TRUE,SUM(VLOOKUP($B$14,'per diem tables'!$A$2:$D$32,4,TRUE)*-1),\"\"))","v":""},null,"",null,false,false,false,false,null,null,null,null,false]
["",null,null,null,"",null,"",null,{"$f":"IF($E$17=\"\",\"\",IF(Q23=TRUE,SUM(VLOOKUP($B$14,'per diem tables'!$A$2:$D$32,2,TRUE)*-1),\"\"))","v":""},{"$f":"IF($E$17=\"\",\"\",IF(R23=TRUE,SUM(VLOOKUP($B$14,'per diem tables'!$A$2:$D$32,3,TRUE)*-1),\"\"))","v":""},{"$f":"IF($E$17=\"\",\"\",IF(W23=TRUE,SUM(VLOOKUP($B$14,'per diem tables'!$A$2:$D$32,4,TRUE)*-1),\"\"))","v":""},null,"",null,false,false,false,false,null,null,null,null,false]
["",null,null,null,"",null,"",null,{"$f":"IF($E$17=\"\",\"\",IF(Q24=TRUE,SUM(VLOOKUP($B$14,'per diem tables'!$A$2:$D$32,2,TRUE)*-1),\"\"))","v":""},{"$f":"IF($E$17=\"\",\"\",IF(R24=TRUE,SUM(VLOOKUP($B$14,'per diem tables'!$A$2:$D$32,3,TRUE)*-1),\"\"))","v":""},{"$f":"IF($E$17=\"\",\"\",IF(W24=TRUE,SUM(VLOOKUP($B$14,'per diem tables'!$A$2:$D$32,4,TRUE)*-1),\"\"))","v":""},null,"",null,false,false,false,false,null,null,null,null,false]
["",null,null,null,"",null,"",null,{"$f":"IF($E$17=\"\",\"\",IF(Q25=TRUE,SUM(VLOOKUP($B$14,'per diem tables'!$A$2:$D$32,2,TRUE)*-1),\"\"))","v":""},{"$f":"IF($E$17=\"\",\"\",IF(R25=TRUE,SUM(VLOOKUP($B$14,'per diem tables'!$A$2:$D$32,3,TRUE)*-1),\"\"))","v":""},{"$f":"IF($E$17=\"\",\"\",IF(W25=TRUE,SUM(VLOOKUP($B$14,'per diem tables'!$A$2:$D$32,4,TRUE)*-1),\"\"))","v":""},null,"",null,false,false,false,false,null,null,null,null,false]
["",null,null,null,"",null,"",null,{"$f":"IF($E$17=\"\",\"\",IF(Q26=TRUE,SUM(VLOOKUP($B$14,'per diem tables'!$A$2:$D$32,2,TRUE)*-1),\"\"))","v":""},{"$f":"IF($E$17=\"\",\"\",IF(R26=TRUE,SUM(VLOOKUP($B$14,'per diem tables'!$A$2:$D$32,3,TRUE)*-1),\"\"))","v":""},{"$f":"IF($E$17=\"\",\"\",IF(W26=TRUE,SUM(VLOOKUP($B$14,'per diem tables'!$A$2:$D$32,4,TRUE)*-1),\"\"))","v":""},null,"",null,false,false,false,false,null,null,null,null,false]
["",null,null,null,"",null,"",null,{"$f":"IF($E$17=\"\",\"\",IF(Q27=TRUE,SUM(VLOOKUP($B$14,'per diem tables'!$A$2:$D$32,2,TRUE)*-1),\"\"))","v":""},{"$f":"IF($E$17=\"\",\"\",IF(R27=TRUE,SUM(VLOOKUP($B$14,'per diem tables'!$A$2:$D$32,3,TRUE)*-1),\"\"))","v":""},{"$f":"IF($E$17=\"\",\"\",IF(W27=TRUE,SUM(VLOOKUP($B$14,'per diem tables'!$A$2:$D$32,4,TRUE)*-1),\"\"))","v":""},null,"",null,false,false,false,false,null,null,null,null,false]
["Explain Any Unusual Amounts for Subsistence:",null,null,null,null,null,null,"Amount by Column",{"$f":"SUM(I17:I27)","v":0},{"$f":"SUM(J17:J27)","v":0},0,{"$f":"SUM(L17:L27)","v":0}]
[null,null,null,null,null,null,null,null,null,null,null,"TOTAL",{"$f":"SUM(M17:M28)","v":0}]
[]
["State Use Miles:           Over 50 Miles                           Within 50 Mile Radius",null,null,null,null,null,null,"Rate",{"$f":"IF(O31=TRUE,0.18,IF(P31=TRUE,0.545,\"\"))","v":""},"Total Miles",{"$f":"'Page 2 - Travel Expenses'!I23","v":0},null,{"$f":"IF(COUNTBLANK(I31),\"\",I31*K31)","v":""},null,false,false]
["Common Carrier / Limousine (Explain in Section on Page 2)",null,null,null,null,null,null,null,null,null,null,null,{"$f":"'Page 2 - Travel Expenses'!I40","v":0}]
["Miscellaneous Expenses (Explain in Section on Page 2)",null,null,null,null,null,null,null,null,null,null,null,{"$f":"'Page 2 - Travel Expenses'!I47","v":0}]
["TOTAL TRAVEL EXPENSE",null,null,null,null,null,null,null,null,null,null,null,{"$f":"SUM(M29:M33)","v":0}]
["Travel Advance V#:  ",null,null,null,null,"← Enter Cash Advance #, if applicable"]
["Due TO/FROM Expense Submitter:",null,null,null,null,null,null,null,null,null,null,null,{"$f":"M34-M35","v":0}]
[]
["Section 3: Certification and Attestation"]
["I do solemnly swear, under criminal penalty of a felony for false statements subject to punishment by fine of not more than $1,000 or by imprisonment of not less than one nor more than five years, that the above statements are true and I have incurred the described expenses and the state use mileage in the discharge of my official duties of the state.\""]
[]
["Traveler Signature:",null,null,null,null,null,null,null,null,null,null,null,"Date"]
[]
["Supervisor Signature",null,null,null,null,null,null,null,null,null,null,null,"Date"]
[]
["Budget Unit Head Signature:",null,null,null,null,null,null,null,null,null,null,null,"Date"]
[]
["Title III Signature (if applicable):",null,null,null,null,null,null,null,null,null,null,null,"Date"]

{"sheet":"Page 2 - Travel Expenses","index":2,"n_rows":49,"n_cols":22,"rows_kept":49,"cut":false,"hidden":false,"merged":[[0,0,0,1],[0,2,0,3],[1,0,1,3],[3,1,3,2],[6,6,7,6],[6,0,7,0],[6,1,7,1],[6,2,7,2],[3,3,3,4],[5,2,5,4],[46,0,46,7],[28,0,28,8],[29,0,29,8],[33,1,33,7],[31,1,32,7],[39,0,39,7],[41,1,41,7],[37,1,37,7],[38,1,38,7],[40,1,40,7],[36,1,36,7],[31,8,32,8],[30,0,30,8],[25,0,25,1],[44,1,44,7],[45,1,45,7],[31,0,32,0],[6,7,7,7],[27,0,27,8],[42,1,42,7],[43,1,43,7],[35,1,35,7],[34,1,34,7],[6,3,6,4],[6,8,7,8]]}
[null,null,null,null,null,"Itemized Travel Expenses"]
[]
[]
["Traveler Name:",{"$f":"'Page1 - Expense Report'!D5","v":0},null,"GA License Plate Number:",null,null,null,null,null,null,null,null,null,null,null,null,null,null,null,"YES",null,"Automobile"]
[]
[null,null,"Select type of personal vehicle:",null,null,"Automobile"]
["Date","Origin","Destination","Odometer Reading",null,null,"Commute Miles","Personal Miles","State Use Miles"]
[null,null,null,"Starting","Ending ","Total Miles"]
[null,null,null,null,null,{"$f":"E9-D9","v":0},null,null,{"$f":"+F9-G9-H9","v":0}]
[null,null,null,null,null,{"$f":"E10-D10","v":0},null,null,{"$f":"+F10-G10-H10","v":0}]
[null,null,null,null,null,0,null,null,0]
[null,null,null,null,null,0,null,null,0]
[null,null,null,null,null,0,null,null,0]
[null,null,null,null,null,0,null,null,0]
[null,null,null,null,null,0,null,null,0]
[null,null,null,null,null,0,null,null,0]
[null,null,null,null,null,0,null,null,0]
[null,null,null,null,null,0,null,null,0]
[null,null,null,null,null,0,null,null,0]
[null,null,null,null,null,0,null,null,0]
[null,null,null,null,null,0,null,null,0]
[null,null,null,null,null,0,null,null,0]
["Indicate use of motor pool vehicle or shared transportation:",null,null,null,null,null,"Total State Use Miles",null,{"$f":"SUM(I9:I22)","v":0}]
[]
["        Motor Pool Vehicle was used for travel"]
["Person(s) traveled with: "]
[]
["Purpose of the Trip:"]
[]
[]
["All reimbursable expenses must be listed and appropriate original receipts attached. "]
["Date","Commercial Transportation (Including Parking, Taxi, Tolls)",null,null,null,null,null,null,"Amount"]
[]
[]
[]
[]
[]
[]
[]
["TOTAL COMMON CARRIER, ETC…",null,null,null,null,null,null,null,{"$f":"SUM(I34:I39)","v":0}]
["Date","Miscellaneous Expenses",null,null,null,null,null,null,"Amount"]
[]
[]
[]
[]
[]
["TOTAL MISCELLANEOUS",null,null,null,null,null,null,null,{"$f":"SUM(I42:I46)","v":0}]
["Note:  Please be sure to attach all necessary receipts, indicate travel start time on the departure date and the travel return time on the return date, and to"]
["attach program agendas (conference schedule), if applicable."]

{"sheet":"per diem tables","index":3,"n_rows":32,"n_cols":5,"rows_kept":32,"cut":false,"hidden":true,"merged":[]}
["Domestic"]
["M&IE Total","Breakfast","Lunch","Dinner","Incidentals"]
[21,4.5,5.25,11.25,0]
[27,5.25,6.75,15,0]
[28,6,7,15,0]
[30.75,{"$f":"7*0.75","v":5.25},{"$f":"11*0.75","v":8.25},{"$f":"23*0.75","v":17.25},0]
[34.5,6,9,19.5,0]
[36,7,9,20,0]
[36.75,6,9.75,21,0]
[38.25,6.75,9.75,21.75,0]
[40.5,6.75,10.5,23.25,0]
[41,7,11,23,0]
[42,7.5,11.25,23.25,0]
[44.25,8.25,11.25,24.75,0]
[45.75,8.25,12,25.5,0]
[46,8,12,26,0]
[48,8,13,27,0]
[48.75,8.25,13.5,27,0]
[49,8,13.5,27.5,0]
[49.5,9,13.5,27,0]
[51,9,13,29,0]
[51.75,9.25,13.25,29.25,0]
[{"$f":"71*0.75","v":53.25},9.75,15,28.5,0]
[54,9,14,31,0]
[56,10,15,31,0]
[59,11,16,32,0]
[61,11,16,34,0]
[64,10,18,36,0]
[65,11,18,36,0]
[66,12,18,36,0]
[69,13,19,37,0]
[71,13,20,38,0]

{"sheet":"Sheet1","index":4,"n_rows":521,"n_cols":6,"rows_kept":521,"cut":false,"hidden":true,"merged":[[0,0,0,5]]}
["FY 2016 Per Diem Rates - Effective October 1, 2015; Updated October 1, 2015"]
["City,State","STATE","DESTINATION","COUNTY","FY14 M&IE","SSU M&IE"]
[{"$f":"CONCATENATE(C3,\", \",B3)","v":"Birmingham, AL"},"AL","Birmingham","Jefferson / Shelby",59,{"$f":"E3-5","v":54}]
["Gulf Shores, AL","AL","Gulf Shores","Baldwin",64,59]
["Mobile, AL","AL","Mobile","Mobile",59,54]
["Other, AL","AL","Other",null,51,46]
["Hot Springs, AR","AR","Hot Springs","Garland",59,54]
["Little Rock, AR","AR","Little Rock","Pulaski",59,54]
["Other, AR","AR","Other",null,51,46]
["Grand Canyon, AZ","AZ","Grand Canyon","Coconino / Yavapai less the city of Sedona",64,59]
["Flagstaff, AZ","AZ","Flagstaff","Coconino / Yavapai less the city of Sedona",64,59]
["Kayenta, AZ","AZ","Kayenta","Navajo",59,54]
["Phoenix , AZ","AZ","Phoenix ","Maricopa",59,54]
["Scottsdale, AZ","AZ","Scottsdale","Maricopa",59,54]
["Sedona, AZ","AZ","Sedona","City Limits of Sedona",74,69]
["Tucson, AZ","AZ","Tucson","Pima",59,54]
["Other, AZ","AZ","Other",null,51,46]
["Antioch, CA","CA","Antioch","Contra Costa",64,59]
["Bentwood, CA","CA","Bentwood","Contra Costa",64,59]
["Concord, CA","CA","Concord","Contra Costa",64,59]
["Bakersfield , CA","CA","Bakersfield ","Kern",59,54]
["Ridgecrest, CA","CA","Ridgecrest","Kern",59,54]
["Barstow, CA","CA","Barstow","San Bernardino",54,49]
["Ontario, CA","CA","Ontario","San Bernardino",54,49]
["Victorville, CA","CA","Victorville","San Bernardino",54,49]
["Death Valley, CA","CA","Death Valley","Inyo ",64,59]
["Eureka , CA","CA","Eureka ","Humboldt",74,69]
["Arcata, CA","CA","Arcata","Humboldt",74,69]
["McKinleyville, CA","CA","McKinleyville","Humboldt",74,69]
["Fresno, CA","CA","Fresno","Fresno",64,59]
["Los Angeles, CA","CA","Los Angeles","Los Angeles / Orange / Ventura / Edwards AFB less the city of Santa Monica",64,59]
["Mammoth Lakes, CA","CA","Mammoth Lakes","Mono",74,69]
["Mill Valley , CA","CA","Mill Valley ","Marin",74,69]
["San Rafael, CA","CA","San Rafael","Marin",74,69]
["Novato, CA","CA","Novato","Marin",74,69]
["Monterey, CA","CA","Monterey","Monterey",74,69]
["Napa, CA","CA","Napa","Napa",69,64]
["Oakhurst, CA","CA","Oakhurst","Madera ",64,59]
["Oakland, CA","CA","Oakland","Alameda",69,64]
["Palm Springs, CA","CA","Palm Springs","Riverside",64,59]
["Point Arena , CA","CA","Point Arena ","Mendocino",69,64]
["Gualala, CA","CA","Gualala","Mendocino",69,64]
["Redding, CA","CA","Redding","Shasta",64,59]
["Sacramento, CA","CA","Sacramento","Sacramento",64,59]
["San Diego, CA","CA","San Diego","San Diego",64,59]
["San Francisco, CA","CA","San Francisco","San Francisco",74,69]
["San Luis Obispo, CA","CA","San Luis Obispo","San Luis Obispo",64,59]
["San Mateo, CA","CA","San Mateo","San Mateo",69,64]
["Foster City, CA","CA","Foster City","San Mateo",69,64]
["Belmont, CA","CA","Belmont","San Mateo",69,64]
["Santa Barbara, CA","CA","Santa Barbara","Santa Barbara",74,69]
["Santa Cruz, CA","CA","Santa Cruz","Santa Cruz",59,54]
["Santa Monica , CA","CA","Santa Monica ","City limits of Santa Monica",64,59]
["Santa Rosa, CA","CA","Santa Rosa","Sonoma",64,59]
["South Lake Tahoe, CA","CA","South Lake Tahoe","El Dorado",64,59]
["Stockton , CA","CA","Stockton ","San Joaquin",64,59]
["Sunnyvale, CA","CA","Sunnyvale","Santa Clara",64,59]
["Palo Alto, CA","CA","Palo Alto","Santa Clara",64,59]
["San Jose, CA","CA","San Jose","Santa Clara",64,59]
["Tahoe City, CA","CA","Tahoe City","Placer",64,59]
["Truckee, CA","CA","Truckee","Nevada ",74,69]
["Visalia , CA","CA","Visalia ","Tulare / Kings",59,54]
["Lemoore, CA","CA","Lemoore","Tulare / Kings",59,54]
["West Sacramento , CA","CA","West Sacramento ","Yolo",64,59]
["Davis, CA","CA","Davis","Yolo",64,59]
["Yosemite National Park, CA","CA","Yosemite National Park","Mariposa",69,64]
[{"$f":"CONCATENATE(C67,\", \",B67)","v":"Other, CA"},"CA","Other",null,51,{"$f":"E67-5","v":46}]
["Aspen, CO","CO","Aspen","Pitkin",74,69]
["Boulder , CO","CO","Boulder ","Boulder / Broomfield",59,54]
["Broomfield, CO","CO","Broomfield","Boulder / Broomfield",59,54]
["Colorado Springs, CO","CO","Colorado Springs","El Paso",59,54]
["Cortez, CO","CO","Cortez","Montezuma",59,54]
["Gunnison, CP","CP","Gunnison","Gunnison",64,59]
["Crested Butte , CO","CO","Crested Butte ","Gunnison",64,59]
["Denver, CO","CO","Denver","Denver / Adams / Arapahoe / Jefferson",69,64]
["Aurora, CO","CO","Aurora","Denver / Adams / Arapahoe / Jefferson",69,64]
["Douglas , CO","CO","Douglas ","Douglas",59,54]
["Durango, CO","CO","Durango","La Plata",64,59]
["Fort Collins , CO","CO","Fort Collins ","Larimer",59,54]
["Loveland, CO","CO","Loveland","Larimer",59,54]
["Grand Lake, CO","CO","Grand Lake","Grand",64,59]
["Montrose, CO","CO","Montrose","Montrose",64,59]
["Silverthorne , CO","CO","Silverthorne ","Summit",64,59]
["Breckenridge, CO","CO","Breckenridge","Summit",64,59]
["Steamboat Springs, CO","CO","Steamboat Springs","Routt",74,69]
["Telluride, CO","CO","Telluride","San Miguel",74,69]
["Vail, CO","CO","Vail","Eagle",74,69]
["Other, CO","CO","Other",null,51,46]
["Bridgeport, CT","CT","Bridgeport","Fairfield",64,59]
["Danbury, CT","CT","Danbury","Fairfield",64,59]
["Cromwell, CT","CT","Cromwell","Middlesex",64,59]
["Old Saybrook, CT","CT","Old Saybrook","Middlesex",64,59]
["Hartford, CT","CT","Hartford","Hartford",59,54]
["New Haven, CT","CT","New Haven","New Haven",64,59]
["New London , CT","CT","New London ","New London",64,59]
["Groton, CT","CT","Groton","New London",64,59]
["Other, CT","CT","Other",null,51,46]
["District of Columbia, DC","DC","District of Columbia","Washington DC (also the cities of Alexandria, Falls Church and Fairfax, and the counties of Arlington and Fairfax, in Virginia; and the counties of Montgomery and Prince George's in Maryland)",69,64]
["Dover, DE","DE","Dover","Kent",54,49]
["Lewes, DE","DE","Lewes","Sussex",59,54]
["Wilmington, DE","DE","Wilmington","New Castle",54,49]
["Other, DE","DE","Other",null,51,46]
["Boca Raton, FL","FL","Boca Raton","Palm Beach / Hendry",59,54]
["Delray Beach, FL","FL","Delray Beach","Palm Beach / Hendry",59,54]
["Jupiter, FL","FL","Jupiter","Palm Beach / Hendry",59,54]
["Bradenton, FL","FL","Bradenton","Manatee",54,49]
["Cocoa Beach, FL","FL","Cocoa Beach","Brevard",64,59]
["Daytona Beach, FL","FL","Daytona Beach","Volusia",59,54]
["Fort Lauderdale, FL","FL","Fort Lauderdale","Broward",64,59]
["Fort Myers, FL","FL","Fort Myers","Lee",59,54]
["Fort Walton Beach , FL","FL","Fort Walton Beach ","Okaloosa / Walton",64,59]
["De Funiak Springs, FL","FL","De Funiak Springs","Okaloosa / Walton",64,59]
["Gainesville, FL","FL","Gainesville","Alachua",59,54]
["Gulf Breeze, FL","FL","Gulf Breeze","Santa Rosa",64,59]
["Key West, FL","FL","Key West","Monroe",69,64]
["Miami, FL","FL","Miami","Miami-Dade",64,59]
["Naples, FL","FL","Naples","Collier",64,59]
["Orlando, FL","FL","Orlando","Orange",59,54]
["Panama City, FL","FL","Panama City","Bay",59,54]
["Pensacola , FL","FL","Pensacola ","Escambia",59,54]
["Punta Gorda, FL","FL","Punta Gorda","Charlotte",59,54]
["Sarasota, FL","FL","Sarasota","Sarasota",59,54]
["Sebring, FL","FL","Sebring","Highlands",54,49]
["St. Augustine, FL","FL","St. Augustine","St. Johns",59,54]
["Stuart, FL","FL","Stuart","Martin",59,54]
["Tallahassee, FL","FL","Tallahassee","Leon",54,49]
["Tampa, FL","FL","Tampa","Pinellas / Hillsborough",54,49]
["St. Petersburg, FL","FL","St. Petersburg","Pinellas / Hillsborough",54,49]
["Vero Beach, FL","FL","Vero Beach","Indian River",59,54]
["Other, FL","FL","Other",null,51,46]
[{"$f":"CONCATENATE(C131,\", \",B131)","v":"Athens, GA"},"GA","Athens","Clarke",36,36]
["Atlanta, GA","GA","Atlanta","Fulton / Dekalb / Cobb",36,36]
["Augusta, GA","GA","Augusta","Richmond",36,36]
["Jekyll Island / Brunswick, GA","GA","Jekyll Island / Brunswick","Glynn",36,36]
["Savannah, GA","GA","Savannah","Chatham",36,36]
["Other, GA","GA","Other",null,28,28]
["Cedar Rapids, IA","IA","Cedar Rapids","Linn",54,{"$f":"E137-5","v":49}]
["Dallas, IA","IA","Dallas","Dallas",54,49]
["Des Moines, IA","IA","Des Moines","Polk",59,54]
["Other, IA","IA","Other",null,51,46]
["Bonner's Ferry , ID","ID","Bonner's Ferry ","Bonner / Boundary / Shoshone",64,59]
["Sandpoint, ID","ID","Sandpoint","Bonner / Boundary / Shoshone",64,59]
["Coeur d'Alene, ID","ID","Coeur d'Alene","Kootenai",59,54]
["Sun Valley, ID","ID","Sun Valley","Blaine / Elmore",54,49]
["Ketchum, ID","ID","Ketchum","Blaine / Elmore",54,49]
["Other, ID","ID","Other",null,51,46]
["Bolingbrook, IL","IL","Bolingbrook","Will",54,49]
["Lemont, IL","IL","Lemont","Will",54,49]
["Romeoville, IL","IL","Romeoville","Will",54,49]
["Chicago, IL","IL","Chicago","Cook / Lake",74,69]
["O'Fallon, IL","IL","O'Fallon","Bond / Calhoun / Clinton / Jersey / Macoupin / Madison / Monroe / St. Clair",54,49]
["Fairview Heights, IL","IL","Fairview Heights","Bond / Calhoun / Clinton / Jersey / Macoupin / Madison / Monroe / St. Clair",54,49]
["Collinsville, IL","IL","Collinsville","Bond / Calhoun / Clinton / Jersey / Macoupin / Madison / Monroe / St. Clair",54,49]
["Oak Brook Terrace, IL","IL","Oak Brook Terrace","Dupage",59,54]
["Other, IL","IL","Other",null,51,46]
["Bloomington , IN","IN","Bloomington ","Monroe",69,64]
["Ft. Wayne, IN","IN","Ft. Wayne","Allen",54,49]
["Hammond , IN","IN","Hammond ","Lake",59,54]
["Munster, IN","IN","Munster","Lake",59,54]
["Merrillville, IN","IN","Merrillville","Lake",59,54]
["Indianapolis , IN","IN","Indianapolis ","Marion / Hamilton",54,49]
["Carmel, IN","IN","Carmel","Marion / Hamilton",54,49]
["Lafayette , IN","IN","Lafayette ","Tippecanoe",54,49]
["West Lafayette, IN","IN","West Lafayette","Tippecanoe",54,49]
["South Bend, IN","IN","South Bend","St. Joseph",59,54]
["Other, IN","IN","Other",null,51,46]
["Kansas City , KS","KS","Kansas City ","Wyandotte / Johnson / Leavenworth",64,59]
["Overland Park, KS","KS","Overland Park","Wyandotte / Johnson / Leavenworth",64,59]
["Wichita, KS","KS","Wichita","Sedgwick",59,54]
["Other, KS","KS","Other",null,51,46]
["Boone, KY","KY","Boone","Boone",54,49]
["Kenton, KY","KY","Kenton","Kenton",69,64]
["Lexington, KY","KY","Lexington","Fayette",54,49]
["Louisville, KY","KY","Louisville","Jefferson",59,54]
["Other, KY","KY","Other",null,51,46]
["Alexandria, LA","LA","Alexandria","Allen / Jefferson Davis / Natchitoches / Rapides / Vernon Parishes",64,59]
["Leesville, LA","LA","Leesville","Allen / Jefferson Davis / Natchitoches / Rapides / Vernon Parishes",64,59]
["Natchitoches, LA","LA","Natchitoches","Allen / Jefferson Davis / Natchitoches / Rapides / Vernon Parishes",64,59]
["Baton Rouge, LA","LA","Baton Rouge","East Baton Rouge Parish",59,54]
["New Orleans, LA","LA","New Orleans","Orleans / St. Bernard / Jefferson / Plaquemine Parishes",64,59]
["Other, LA","LA","Other",null,51,46]
["Andover, MA","MA","Andover","Essex",59,54]
["Boston , MA","MA","Boston ","Suffolk, city of Cambridge",69,64]
["Cambridge, MA","MA","Cambridge","Suffolk, city of Cambridge",69,64]
["Burlington, MA","MA","Burlington","Middlesex less the city of Cambridge",64,59]
["Woburn, MA","MA","Woburn","Middlesex less the city of Cambridge",64,59]
["Falmouth, MA","MA","Falmouth","City limits of Falmouth",64,59]
["Hyannis, MA","MA","Hyannis","Barnstable less the city of Falmouth",64,59]
["Martha's Vineyard, MA","MA","Martha's Vineyard","Dukes",74,69]
["Nantucket, MA","MA","Nantucket","Nantucket",74,69]
["Northampton, MA","MA","Northampton","Hampshire",64,59]
["Pittsfield, MA","MA","Pittsfield","Berkshire",64,59]
["Plymouth, MA","MA","Plymouth","Plymouth / Bristol",59,54]
["Taunton, MA","MA","Taunton","Plymouth / Bristol",59,54]
[{"$f":"CONCATENATE(C195,\", \",B195)","v":"New Bedford, MA"},"MA","New Bedford","Plymouth / Bristol",59,{"$f":"E195-5","v":54}]
["Quincy, MA","MA","Quincy","Norfolk",59,54]
["Springfield, MA","MA","Springfield","Hampden",59,54]
["Worcester, MA","MA","Worcester","Worcester",59,54]
["Other, MA","MA","Other",null,51,46]
["Aberdeen , MD","MD","Aberdeen ","Harford",59,54]
["Bel Air, MD","MD","Bel Air","Harford",59,54]
["Belcamp, MD","MD","Belcamp","Harford",59,54]
["Annapolis, MD","MD","Annapolis","Anne Arundel",69,64]
["Baltimore City, MD","MD","Baltimore City","Baltimore City",69,64]
["Baltimore County, MD","MD","Baltimore County","Baltimore",59,54]
["Cambridge , MD","MD","Cambridge ","Dorchester / Talbot",64,59]
["St. Michaels, MD","MD","St. Michaels","Dorchester / Talbot",64,59]
["Centreville, MD","MD","Centreville","Queen Anne",69,64]
["Columbia, MD","MD","Columbia","Howard",64,59]
["Frederick, MD","MD","Frederick","Frederick",59,54]
["Lexington Park , MD","MD","Lexington Park ","St. Mary's / Calvert",59,54]
["Leonardtown, MD","MD","Leonardtown","St. Mary's / Calvert",59,54]
["Lusby, MD","MD","Lusby","St. Mary's / Calvert",59,54]
["Ocean City, MD","MD","Ocean City","Worcester",64,59]
["Other, MD","MD","Other",null,51,46]
["Bar Harbor, ME","ME","Bar Harbor","Hancock",74,69]
["Kennebunk, ME","ME","Kennebunk","York ",59,54]
["Kittery, ME","ME","Kittery","York ",59,54]
["Sanford, ME","ME","Sanford","York ",59,54]
["Portland, ME","ME","Portland","Cumberland / Sagadahoc",59,54]
["Rockport, ME","ME","Rockport","Knox",69,64]
["Other, ME","ME","Other",null,51,46]
["Ann Arbor, MI","MI","Ann Arbor","Washtenaw",59,54]
["Benton Harbor , MI","MI","Benton Harbor ","Berrien ",54,49]
["St. Joseph, MI","MI","St. Joseph","Berrien ",54,49]
["Stevensville, MI","MI","Stevensville","Berrien ",54,49]
["Detroit, MI","MI","Detroit","Wayne",54,49]
["East Lansing , MI","MI","East Lansing ","Ingham / Eaton",59,54]
["Lansing, MI","MI","Lansing","Ingham / Eaton",59,54]
["Grand Rapids, MI","MI","Grand Rapids","Kent",59,54]
["Holland, MI","MI","Holland","Ottawa",59,54]
["Kalamazoo  , MI","MI","Kalamazoo  ","Kalamazoo / Calhoun",54,49]
["Battle Creek, MI","MI","Battle Creek","Kalamazoo / Calhoun",54,49]
["Mackinac Island, MI","MI","Mackinac Island","Mackinac",59,54]
["Midland, MI","MI","Midland","Midland",54,49]
["Muskegon, MI","MI","Muskegon","Muskegon",54,49]
["Petoskey, MI","MI","Petoskey","Emmet",59,54]
["Pontiac , MI","MI","Pontiac ","Oakland",54,49]
["Auburn Hills, MI","MI","Auburn Hills","Oakland",54,49]
["South Haven, MI","MI","South Haven","Van Buren",59,54]
["Traverse City , MI","MI","Traverse City ","Grand Traverse / Leelanau",74,69]
["Leland, MI","MI","Leland","Grand Traverse / Leelanau",74,69]
["Other, MN","MN","Other",null,51,46]
["Duluth, MN","MN","Duluth","St. Louis",64,59]
["Eagan, MN","MN","Eagan","Dakota",59,54]
["Burnsville, MN","MN","Burnsville","Dakota",59,54]
["Mendota Heights, MN","MN","Mendota Heights","Dakota",59,54]
["Minneapolis, MN","MN","Minneapolis","Hennepin / Ramsey",64,59]
["St. Paul, MN","MN","St. Paul","Hennepin / Ramsey",64,59]
["Rochester, MN","MN","Rochester","Olmsted",64,59]
["Other, MN","MN","Other",null,51,46]
["Kansas City, MO","MO","Kansas City","Jackson / Clay / Cass / Platte",64,59]
["St. Louis, MO","MO","St. Louis","St. Louis / St. Louis City / St. Charles / Crawford / Franklin / Jefferson / Lincoln / Warren / Washington",54,49]
["Other, MO","MO","Other",null,51,46]
["Oxford, MS","MS","Oxford","Lafayette",64,59]
["Southaven, MS","MS","Southaven","Desoto",59,54]
["Starkville , MS","MS","Starkville ","Oktibbeha",54,49]
["Other, MS","MS","Other",null,51,46]
[{"$f":"CONCATENATE(C259,\", \",B259)","v":"Big Sky , MT"},"MT","Big Sky ","Gallatin",59,{"$f":"E259-5","v":54}]
["West Yellowstone, MT","MT","West Yellowstone","Gallatin",59,54]
["Butte, MT","MT","Butte","Silver Bow",64,59]
["Glendive , MT","MT","Glendive ","Dawson / Richland",69,64]
["Sidney, MT","MT","Sidney","Dawson / Richland",69,64]
["Helena, MT","MT","Helena","Lewis and Clark",64,59]
["Missoula, MT","MT","Missoula","Missoula / Lake / Flathead",59,54]
["Polson, MT","MT","Polson","Missoula / Lake / Flathead",59,54]
["Kalispell, MT","MT","Kalispell","Missoula / Lake / Flathead",59,54]
["Other, MT","MT","Other",null,51,46]
["Asheville , NC","NC","Asheville ","Buncombe",59,54]
["Atlantic Beach , NC","NC","Atlantic Beach ","Carteret",64,59]
["Morehead City, NC","NC","Morehead City","Carteret",64,59]
["Chapel Hill, NC","NC","Chapel Hill","Orange",69,64]
["Charlotte, NC","NC","Charlotte","Mecklenburg",59,54]
["Durham, NC","NC","Durham","Durham",59,54]
["Fayetteville, NC","NC","Fayetteville","Cumberland",54,49]
["Greensboro, NC","NC","Greensboro","Guilford",54,49]
["Kill Devil, NC","NC","Kill Devil","Dare",64,59]
["New Bern , NC","NC","New Bern ","Craven ",54,49]
["Havelock, NC","NC","Havelock","Craven ",54,49]
["Raleigh, NC","NC","Raleigh","Wake",59,54]
["Wilmington, NC","NC","Wilmington","New Hanover",59,54]
["Other, NC","NC","Other",null,51,46]
["Dickinson, ND","ND","Dickinson","Stark / Mercer / Billings",69,64]
["Beulah, ND","ND","Beulah","Stark / Mercer / Billings",69,64]
["Minot, ND","ND","Minot","Ward ",64,59]
["Williston, ND","ND","Williston","Williams / Mountrail / McKenzie",69,64]
["Other, ND","ND","Other",null,51,46]
["Omaha, NE","NE","Omaha","Douglas",64,59]
["Other, NE","NE","Other",null,51,46]
["Concord, NH","NH","Concord","Merrimack",59,54]
["Conway, NH","NH","Conway","Caroll",54,49]
["Durham, NH","NH","Durham","Strafford",54,49]
["Laconia, NH","NH","Laconia","Belknap",69,64]
["Lebanon , NH","NH","Lebanon ","Grafton / Sullivan ",64,59]
["Lincoln   , NH","NH","Lincoln   ","Grafton / Sullivan ",64,59]
["West Lebanon, NH","NH","West Lebanon","Grafton / Sullivan ",64,59]
["Manchester, NH","NH","Manchester","Hillsborough",64,59]
["Portsmouth, NH","NH","Portsmouth","Rockingham",59,54]
["Other, NH","NH","Other",null,51,46]
["Atlantic City, NJ","NJ","Atlantic City","Atlantic / Cape May",64,59]
["Ocean City, NJ","NJ","Ocean City","Atlantic / Cape May",64,59]
["Cape May, NJ","NJ","Cape May","Atlantic / Cape May",64,59]
["Cherry Hill , NJ","NJ","Cherry Hill ","Camden / Burlington",59,54]
["Moorestown, NJ","NJ","Moorestown","Camden / Burlington",59,54]
["Eatontown , NJ","NJ","Eatontown ","Monmouth",59,54]
["Freehold, NJ","NJ","Freehold","Monmouth",59,54]
["Edison , NJ","NJ","Edison ","Middlesex ",59,54]
["Piscataway, NJ","NJ","Piscataway","Middlesex ",59,54]
["Flemington, NJ","NJ","Flemington","Hunterdon",64,59]
["Newark, NJ","NJ","Newark","Essex / Bergen / Hudson / Passaic",64,59]
["Parsippany, NJ","NJ","Parsippany","Morris",59,54]
["Princeton , NJ","NJ","Princeton ","Mercer",59,54]
["Trenton, NJ","NJ","Trenton","Mercer",59,54]
["Somerset, NJ","NJ","Somerset","Somerset",59,54]
["Springfield , NJ","NJ","Springfield ","Union",59,54]
["Cranford, NJ","NJ","Cranford","Union",59,54]
["New Providence, NJ","NJ","New Providence","Union",59,54]
["Toms River, NJ","NJ","Toms River","Ocean",64,59]
["Other, NJ","NJ","Other",null,51,46]
["Carlsbad, NM","NM","Carlsbad","Eddy",54,49]
["Las Cruces, NM","NM","Las Cruces","Dona Ana",59,54]
["Santa Fe, NM","NM","Santa Fe","Santa Fe",64,59]
[{"$f":"CONCATENATE(C323,\", \",B323)","v":"Taos, NM"},"NM","Taos","Taos",69,{"$f":"E323-5","v":64}]
["Other, NM","NM","Other",null,51,46]
["Incline Village, NV","NV","Incline Village","Washoe",64,59]
["Reno, NV","NV","Reno","Washoe",64,59]
["Sparks, NV","NV","Sparks","Washoe",64,59]
["Las Vegas, NV","NV","Las Vegas","Clark",64,59]
["Other, NV","NV","Other",null,51,46]
["Albany, NY","NY","Albany","Albany",59,54]
["Binghamton , NY","NY","Binghamton ","Broome / Tioga",59,54]
["Owego, NY","NY","Owego","Broome / Tioga",59,54]
["Buffalo, NY","NY","Buffalo","Erie",64,59]
["Floral Park, NY","NY","Floral Park","Nassau",69,64]
["Garden City, NY","NY","Garden City","Nassau",69,64]
["Greak Neck, NY","NY","Greak Neck","Nassau",69,64]
["Glens Falls, NY","NY","Glens Falls","Warren",64,59]
["Ithaca , NY","NY","Ithaca ","Tompkins / Seneca",59,54]
["Waterloo, NY","NY","Waterloo","Tompkins / Seneca",59,54]
["Romulus, NY","NY","Romulus","Tompkins / Seneca",59,54]
["Kingston, NY","NY","Kingston","Ulster",69,64]
["Lake Placid, NY","NY","Lake Placid","Essex",74,69]
["New York City, NY","NY","New York City","Bronx / Kings / New York / Queens / Richmond",74,69]
["Niagara Falls, NY","NY","Niagara Falls","Niagara",59,54]
["Nyack , NY","NY","Nyack ","Rockland",64,59]
["Palisades, NY","NY","Palisades","Rockland",64,59]
["Poughkeepsie, NY","NY","Poughkeepsie","Dutchess",64,59]
["Riverhead , NY","NY","Riverhead ","Suffolk",64,59]
["Ronkonkoma, NY","NY","Ronkonkoma","Suffolk",64,59]
["Melville, NY","NY","Melville","Suffolk",64,59]
["Rochester, NY","NY","Rochester","Monroe",59,54]
["Saratoga Springs, NY","NY","Saratoga Springs","Saratoga / Schenectady",64,59]
["Schenectady, NY","NY","Schenectady","Saratoga / Schenectady",64,59]
["Syracuse , NY","NY","Syracuse ","Onondaga / Oswego",59,54]
["Oswego, NY","NY","Oswego","Onondaga / Oswego",59,54]
["Tarrytown , NY","NY","Tarrytown ","Westchester",64,59]
["Troy , NY","NY","Troy ","Rensselaer",64,59]
["Watertown, NY","NY","Watertown","Jefferson",54,49]
["West Point, NY","NY","West Point","Orange",59,54]
["Other, NY","NY","Other",null,51,46]
["Akron, OH","OH","Akron","Summit",54,49]
["Canton, OH","OH","Canton","Stark",59,54]
["Cincinnati, OH","OH","Cincinnati","Hamilton / Clermont",69,64]
["Cleveland, OH","OH","Cleveland","Cuyahoga",69,64]
["Columbus, OH","OH","Columbus","Franklin",59,54]
["Dayton, OH","OH","Dayton","Greene / Darke / Montgomery",59,54]
["Fairborn, OH","OH","Fairborn","Greene / Darke / Montgomery",59,54]
["Hamilton, OH","OH","Hamilton","Butler / Warren",54,49]
["Medina , OH","OH","Medina ","Wayne / Medina",54,49]
["Wooster, OH","OH","Wooster","Wayne / Medina",54,49]
["Mentor, OH","OH","Mentor","Lake",59,54]
["Sandusky , OH","OH","Sandusky ","Erie /  Huron",54,49]
["Bellevue, OH","OH","Bellevue","Erie /  Huron",54,49]
["Youngstown, OH","OH","Youngstown","Mahoning / Trumbull",54,49]
["Other, OH","OH","Other",null,51,46]
["Enid, OK","OK","Enid","Garfield",59,54]
["Oklahoma City, OK","OK","Oklahoma City","Oklahoma",59,54]
["Other, OK","OK","Other",null,51,46]
["Beaverton, OR","OR","Beaverton","Washington",59,54]
["Bend, OR","OR","Bend","Deschutes",59,54]
["Clackamas, OR","OR","Clackamas","Clackamas",59,54]
["Eugene, OR","OR","Eugene","Lane",59,54]
["Florence, OR","OR","Florence","Lane",59,54]
["Lincoln City, OR","OR","Lincoln City","Lincoln",59,54]
["Portland, OR","OR","Portland","Multnomah",64,59]
["Seaside, OR","OR","Seaside","Clatsop",69,64]
[{"$f":"CONCATENATE(C387,\", \",B387)","v":"Other, OR"},"OR","Other",null,51,{"$f":"E387-5","v":46}]
["Allentown , PA","PA","Allentown ","Lehigh / Northampton",59,54]
["Easton, PA","PA","Easton","Lehigh / Northampton",59,54]
["Bethlehem, PA","PA","Bethlehem","Lehigh / Northampton",59,54]
["Bucks, PA","PA","Bucks","Bucks",59,54]
["Chester, PA","PA","Chester","Delaware",64,59]
["Radnor, PA","PA","Radnor","Delaware",64,59]
["Essington, PA","PA","Essington","Delaware",64,59]
["Erie, PA","PA","Erie","Erie",54,49]
["Gettysburg, PA","PA","Gettysburg","Adams",64,59]
["Harrisburg, PA","PA","Harrisburg","Dauphin County excluding Hershey",69,64]
["Hershey, PA","PA","Hershey","Hershey",69,64]
["Lancaster, PA","PA","Lancaster","Lancaster",59,54]
["Malvern , PA","PA","Malvern ","Chester",59,54]
["Frazer, PA","PA","Frazer","Chester",59,54]
["Berwyn, PA","PA","Berwyn","Chester",59,54]
["Mechanicsburg, PA","PA","Mechanicsburg","Cumberland",54,49]
["Montgomery, PA","PA","Montgomery","Montgomery",64,59]
["Philadelphia, PA","PA","Philadelphia","Philadelphia",64,59]
["Pittsburgh, PA","PA","Pittsburgh","Allegheny",54,49]
["Reading, PA","PA","Reading","Berks",54,49]
["Scranton, PA","PA","Scranton","Lackawanna",59,54]
["State College , PA","PA","State College ","Centre",59,54]
["Other, PA","PA","Other",null,51,46]
["East Greenwich, RI","RI","East Greenwich","Kent / Washington",59,54]
["Warwick, RI","RI","Warwick","Kent / Washington",59,54]
["North Kingstown, RI","RI","North Kingstown","Kent / Washington",59,54]
["Jamestown, RI","RI","Jamestown","Newport ",59,54]
["Middletown, RI","RI","Middletown","Newport ",59,54]
["Newport, RI","RI","Newport","Newport ",59,54]
["Providence , RI","RI","Providence ","Providence / Bristol",59,54]
["Bristol, RI","RI","Bristol","Providence / Bristol",59,54]
["Other, RI","RI","Other",null,51,46]
["Aiken, SC","SC","Aiken","Aiken",59,54]
["Charleston, SC","SC","Charleston","Charleston / Berkeley / Dorchester",69,64]
["Columbia, SC","SC","Columbia","Richland / Lexington",59,54]
["Hilton Head, SC","SC","Hilton Head","Beaufort",64,59]
["Myrtle Beach, SC","SC","Myrtle Beach","Horry",59,54]
["Other, SC","SC","Other",null,51,46]
["Hot Springs, SD","SD","Hot Springs","Fall River / Custer",59,54]
["Rapid City, SD","SD","Rapid City","Pennington",59,54]
["Sturgis, SD","SD","Sturgis","Meade / Butte / Lawrence",59,54]
["Spearfish, SD","SD","Spearfish","Meade / Butte / Lawrence",59,54]
["Other, SD","SD","Other",null,51,46]
["Brentwood , TN","TN","Brentwood ","Williamson",59,54]
["Franklin, TN","TN","Franklin","Williamson",59,54]
["Chattanooga , TN","TN","Chattanooga ","Hamilton",64,59]
["Knoxville, TN","TN","Knoxville","Knox",59,54]
["Memphis, TN","TN","Memphis","Shelby",59,54]
["Nashville, TN","TN","Nashville","Davidson",59,54]
["Other, TN","TN","Other",null,51,46]
["Arlington , TX","TX","Arlington ","Tarrant County / City of Grapevine",59,54]
["Fort Worth, TX","TX","Fort Worth","Tarrant County / City of Grapevine",59,54]
["Grapevine, TX","TX","Grapevine","Tarrant County / City of Grapevine",59,54]
["Austin, TX","TX","Austin","Travis",59,54]
["Big Spring, TX","TX","Big Spring","Howard",54,49]
["College Station, TX","TX","College Station","Brazos",59,54]
["Corpus Christi, TX","TX","Corpus Christi","Nueces",59,54]
["Dallas, TX","TX","Dallas","Dallas ",64,59]
["El Paso, TX","TX","El Paso","El Paso",59,54]
["Galveston, TX","TX","Galveston","Galveston",64,59]
[{"$f":"CONCATENATE(C448,\", \",B448)","v":"Houston , TX"},"TX","Houston ","Montgomery / Fort Bend / Harris",59,54]
["Laredo, TX","TX","Laredo","Webb",59,54]
["McAllen, TX","TX","McAllen","Hidalgo",59,54]
[{"$f":"CONCATENATE(C451,\", \",B451)","v":"Midland, TX"},"TX","Midland","Midland",64,{"$f":"E451-5","v":59}]
["Pearsall, TX","TX","Pearsall","Frio / Medina / La Salle",54,49]
["Pecos, TX","TX","Pecos","Reeves",54,49]
["Plano, TX","TX","Plano","Collin",59,54]
["Round Rock , TX","TX","Round Rock ","Williamson",59,54]
["San Angelo, TX","TX","San Angelo","Tom Green",59,54]
["San Antonio, TX","TX","San Antonio","Bexar",64,59]
["South Padre Island, TX","TX","South Padre Island","Cameron",59,54]
["Waco, TX","TX","Waco","McLennan",59,54]
["Other, TX","TX","Other",null,51,46]
["Moab, UT","UT","Moab","Grand",64,59]
["Park City, UT","UT","Park City","Summit",74,69]
["Provo, UT","UT","Provo","Utah",59,54]
["Salt Lake City, UT","UT","Salt Lake City","Salt Lake / Tooele",59,54]
["Other, UT","UT","Other",null,51,46]
["Abingdon, VA","VA","Abingdon","Washington",69,64]
["Blacksburg, VA","VA","Blacksburg","Montgomery",59,54]
["Charlottesville, VA","VA","Charlottesville","City of Charlottesville / Albemarle / Greene",69,64]
["Loudoun, VA","VA","Loudoun","Loudoun",59,54]
["Lynchburg, VA","VA","Lynchburg","Campbell / Lynchburg City",59,54]
["Richmond, VA","VA","Richmond","City of Richmond",64,59]
["Roanoke, VA","VA","Roanoke","City limits of Roanoke",59,54]
["Virginia Beach, VA","VA","Virginia Beach","City of Virginia Beach",59,54]
["Wallops Island, VA","VA","Wallops Island","Accomack",64,59]
["Warrenton , VA","VA","Warrenton ","Fauquier",59,54]
["Williamsburg , VA","VA","Williamsburg ","James City / York Counties / City of Williamsburg",64,59]
["York, VA","VA","York","James City / York Counties / City of Williamsburg",64,59]
["Other, VA","VA","Other",null,51,46]
["Burlington , VT","VT","Burlington ","Chittenden / Franklin / Addison",64,59]
["St. Albans, VT","VT","St. Albans","Chittenden / Franklin / Addison",64,59]
["Middlebury, VT","VT","Middlebury","Chittenden / Franklin / Addison",64,59]
["Manchester, VT","VT","Manchester","Bennington",69,64]
["Montpelier, VT","VT","Montpelier","Washington",74,69]
["Stowe , VT","VT","Stowe ","Lamoille",74,69]
["White River Junction, VT","VT","White River Junction","Windsor",69,64]
["Other, VT","VT","Other",null,51,46]
["Everett , WA","WA","Everett ","Snohomish",64,59]
["Lynnwood, WA","WA","Lynnwood","Snohomish",64,59]
["Ocean Shores, WA","WA","Ocean Shores","Grays Harbor",69,64]
["Olympia , WA","WA","Olympia ","Thurston",69,64]
["Tumwater, WA","WA","Tumwater","Thurston",69,64]
["Port Angeles , WA","WA","Port Angeles ","Clallam / Jefferson",74,69]
["Port Townsend, WA","WA","Port Townsend","Clallam / Jefferson",74,69]
["Richland , WA","WA","Richland ","Benton / Franklin",59,54]
["Pasco, WA","WA","Pasco","Benton / Franklin",59,54]
["Seattle, WA","WA","Seattle","King",74,69]
["Spokane, WA","WA","Spokane","Spokane",64,59]
["Tacoma, WA","WA","Tacoma","Pierce",64,59]
["Vancouver, WA","WA","Vancouver","Clark / Cowlitz / Skamania",64,59]
["Other, WA","WA","Other",null,51,46]
["Appleton, WI","WI","Appleton","Outagamie",64,59]
["Brookfield , WI","WI","Brookfield ","Waukesha / Racine",59,54]
["Racine, WI","WI","Racine","Waukesha / Racine",59,54]
["Madison, WI","WI","Madison","Dane",59,54]
["Milwaukee, WI","WI","Milwaukee","Milwaukee",64,59]
["Sheboygan, WI","WI","Sheboygan","Sheboygan ",59,54]
["Sturgeon Bay, WI","WI","Sturgeon Bay","Door",54,49]
["Wisconsin Dells, WI","WI","Wisconsin Dells","Columbia",59,54]
["Other, WI","WI","Other",null,51,46]
["Charleston, WV","WV","Charleston","Kanawha",54,49]
["Morgantown, WV","WV","Morgantown","Monongalia",54,49]
["Wheeling, WV","WV","Wheeling","Ohio",54,49]
["Other, WV","WV","Other",null,51,46]
["Cody, WY","WY","Cody","Park",64,59]
[{"$f":"CONCATENATE(C515,\", \",B515)","v":"Evanston, WY"},"WY","Evanston","Sweetwater / Uinta",59,{"$f":"E515-5","v":54}]
["Rock Springs, WY","WY","Rock Springs","Sweetwater / Uinta",59,54]
["Gillette, WY","WY","Gillette","Campbell",59,54]
["Jackson , WY","WY","Jackson ","Teton / Sublette",74,69]
["Pinedale, WY","WY","Pinedale","Teton / Sublette",74,69]
["Other, WY","WY","Other",null,51,46]
["Please Select"]